Workbook

Sheet 021
B6: AUTORIDAD PARA EL MANEJO SUSTENTABLE DE LA CUENCA Y DEL LAGO DE AMATITLÁN NOMINA DE SUELDOS PERSONAL CONTRATADO BAJO EL RENGLÓN 021 "PERSONAL SUPERNUMERARIO" CORRESPONDIENTE A JUNIO DE 2021
B10: No. | C10: CODIGO EMPLEADO | D10: PUESTO | E10: NIT | F10: NOMBRE | G10: Puesto Oficial | H10: Fecha de Ingreso | I10: Fecha de Ingreso | J10: Devengado Mensual | N10: Total Devengado Mensual | O10: Deducciones | T10: Total Deducciones | U10: Líquido | V10: Número de Cuenta
J11: Renglón 021 | K11: Renglón 026 | L11: Renglón 027 | O11: 118 | P11: 202 | Q11: 201 | R11: 102 | S11: 203 | V11: CUENTA MONETARIA
J12: Sueldo Mensual | K12: Bono Profesional | L12: Bono Monetario | M12: Bono 66-2000 | O12: Montepío | P12: Fianza | Q12: IGSS | R12: Amort. Bantrab | S12: ISR
L13: 26 | M13: 27 | O13: PROMEDIO POR 12 MESES | P13: 26 | Q13: 27
B14: 1 | D14: 775401 | F14: Jenniffer Rossana Díaz Contreras | G14: Encargada de Compras | H14: 2021-01-07 | J14: 8700 | K14: 0 | L14: 2000 | M14: 250 | N14: =J14+L14+M14 -> 10950 | O14: =(J14+L14)*15% -> 1605 | P14: =(J14+L14)*1.344% -> 143.808 | Q14: =(J14+L14)*3% -> 321 | S14: 249.99 | T14: =O14+P14+Q14+S14 -> 2319.798 | U14: =N14-T14 -> 8630.202
B15: 2 | D15: 1219451 | F15: Marilyn Maria Fernanda Con Sosa | G15: Encargado de Cobro | H15: 2021-01-07 | J15: 3000 | K15: 0 | L15: 1500 | M15: 250 | N15: =SUM(J15:M15) -> 4750 | O15: 540 | P15: =(J15+L15)*1.344% -> 60.48 | Q15: =(J15+L15)*3% -> 135 | S15: 0 | T15: =O15+P15+Q15+S15 -> 735.48 | U15: 4014.52
B16: 3 | D16: 775402 | F16: Jonnathan Rene Pernillo Salazar | G16: Encargado de Presupuesto | H16: 2021-01-07 | J16: 8200 | K16: 0 | L16: 2000 | M16: 250 | N16: =J16+L16+M16 -> 10450 | O16: =(J16+L16)*15% -> 1530 | P16: 137.088 | Q16: 306 | R16: 3390.44 | S16: 229.54 | T16: =O16+P16+Q16+R16+S16 -> 5593.068 | U16: 4856.932
B17: 4 | C17: 990091724 | D17: 775400 | E17: 46905030 | F17: Claudia Estela Reinoso Fuentes | G17: Encargada de Nomina | H17: 2021-03-02 | I17: 2015-04-13 | J17: 5300 | K17: 0 | L17: 2000 | M17: 250 | N17: =SUM(J17:M17) -> 7550 | O17: 949 | P17: 98.11 | Q17: 219 | R17: 1527.84 | S17: 74.19 | T17: =SUM(O17:S17) -> 2868.14 | U17: 4681.86
B18: 5 | C18: 9901116935 | D18: 1219521 | E18: 1208204K | F18: Josseline Andrea Perez Herrarte | G18: Encargado de Caja Chica | H18: 2021-01-07 | I18: 2015-05-04 | J18: 4500 | K18: 0 | L18: 2000 | M18: 250 | N18: 6750 | O18: 845 | P18: 87.36 | Q18: 195 | S18: 80.9 | T18: =SUM(O18:S18) -> 1208.26 | U18: 5541.74
B19: 6 | C19: 9901227385 | D19: 781020 | E19: 26424169 | F19: Sibia de Jesús Debroy Franco | G19: Encargada de Bodega | H19: 2021-01-07 | I19: 2015-05-04 | J19: 3000 | K19: 0 | L19: 1500 | M19: 250 | N19: =J19+L19+M19 -> 4750 | O19: =(J19+L19)*12% -> 540 | P19: 60.48 | Q19: 135 | S19: 0 | T19: =SUM(O19:S19) -> 735.48 | U19: 4014.52 | V19: 3164068218
B20: 7 | C20: 9901349724 | D20: 775405 | F20: Claudia Maribel Duran Rosales | G20: Encargada de Inventarios | H20: 2021-01-07 | I20: 2015-04-06 | J20: 3000 | K20: 0 | L20: 1500 | M20: 250 | N20: =SUM(J20:M20) -> 4750 | O20: =(J20+L20)*12% -> 540 | P20: 60.48 | Q20: 135 | S20: 0 | T20: =SUM(O20:S20) -> 735.48 | U20: 4014.52
B21: 8 | C21: 9901349724 | D21: 75416 | F21: Jaime Orlando Velásquez Santizo | G21: Encargado de Tesorería | H21: 2021-05-27 | I21: 2015-04-06 | J21: 4064.52 | K21: 0 | L21: 1741.94 | M21: 290.32 | N21: =SUM(J21:M21) -> 6096.78 | O21: 696.77 | P21: 78.04 | Q21: 174.19 | S21: 24.4 | T21: =SUM(O21:S21) -> 973.4 | U21: 5123.38
J22: =SUM(J14:J21) -> 39764.52 | L22: =SUM(L14:L21) -> 14241.94 | M22: 2040.32 | N22: 56046.78 | O22: 7245.77 | P22: 725.846 | Q22: 1620.19 | R22: =SUM(R14:R20) -> 4918.28 | S22: =SUM(S14:S21) -> 659.02 | T22: =SUM(T14:T21) -> 15169.106 | U22: =SUM(U14:U21) -> 40877.674
D29: Elaboró: | O29: Vo.Bo.
F30: Claudia Reinoso Fuentes | P30: Edgar Rolando Zamora Ruiz
F31: Encargada de Nómina | P31: Director Ejecutivo
F32: AMSA | P32: AMSA
U33: 1/1

Sheet Prestaciones 021 (hidden)
A2: NÓMINA ADICIONAL PARA PAGO DE PRESTACIONES
A3: RENGLÓN 022 "PERSONAL POR CONTRATO"
A8: PAGO DE PRESTACIONES
A9: AGUINALDO, BONO VACACIONAL Y BONO 14
A10: No. | B10: Empleado | C10: Puesto | E10: Contrato | F10: Fecha de Ingreso | Q10: Días Laborados en el Año | S10: RENGLÓN 022 | T10: RENGLÓN 026 | U10: RENGLON 27 | V10: Total Devengado Mensual | W10: Renglón 071 | X10: Renglón 073 | Y10: Renglón 072 | AA10: Líquido
S12: Sueldo Mensual | T12: Bono Profesional | U12: Bono 66-2000 | W12: Aguinaldo | X12: Bono Vacacional | Y12: Salarios Devengados | Z12: Bono 14
A14: 1 | B14: Heber Amilcar Barrios de León | C14: Encargado de Inventarios | E14: 10-2016-022-AMSA | F14: 2017-06-13 | I14: =(200/365)*(26+31+30+31+30+31+31+30+31+30+31) -> 181.9178082 | J14: =#REF!+I14 ->  | Q14: 382 | S14: 12000 | T14: 375 | U14: 250 | V14: =SUM(S14:U14) -> 12625 | W14: =12625*352/365 -> 12175.34247 | X14: =382/365*200 -> 209.3150685 | Y14: =(12625*1)+(12625/31*30) -> 24842.74194 | Z14: =Y14/12 -> 2070.228495 | AA14: =W14+X14+Z14 -> 14454.88603
A15: 2 | B15: Edgar Eduardo Pérez Cabrera | C15: Encargado de Inventarios | E15: 08-2017-021-AMSA | F15: 2017-01-01 | I15: =(200/365)*(26+31+30+31+30+31+31+30+31+30+31) -> 181.9178082 | J15: =#REF!+I15 ->  | Q15: 58 | S15: 3000 | T15: 1500 | U15: 250 | V15: =SUM(S15:U15) -> 4750 | W15: =12625*352/365 -> 12175.34247 | X15: =382/365*200 -> 209.3150685 | Y15: =(12625*1)+(12625/31*30) -> 24842.74194 | Z15: =Y15/12 -> 2070.228495 | AA15: =W15+X15+Z15 -> 14454.88603
E16: Totales | S16: =SUM(S14:S14) -> 12000 | T16: 375 | U16: 250 | V16: 12625 | W16: =SUM(W14) -> 12175.34247 | X16: =SUM(X14) -> 209.3150685 | Y16: =SUM(Y14) -> 24842.74194 | Z16: =SUM(Z14) -> 2070.228495 | AA16: =SUM(AA14:AA14) -> 14454.88603
G17: =SUM(G16:G16) -> 0 | H17: =SUM(#REF!) ->  | I17: =SUM(I14:I16) -> 363.8356164 | J17: =SUM(J14:J16) -> 
A18: Al señor Brian Antonio Archila Koppler se le esta efectuando el pago de prestaciones laborales hasta el día 28 de febrero de 2017, según Acuerdo número RH-047-2016 de fecha 31 de octubre de 2016.
A30: Elaboró | E30: Revisó: | W30: Vo.Bo.
B31: Yeimy Daleicy Rodriguez González | F31: Víctor Aníbal López Aquino | X31: Ing. Oscar Amed Juárez Sosa
B32: Encargada de Nómina | F32: Jefe Administrativo Financiero | X32: Director Ejecutivo
B33: AMSA | F33: AMSA | X33: AMSA
AA39: 1/1

Sheet 011 y 022
A2: AUTORIDAD PARA EL MANEJO SUSTENTABLE DE LA CUENCA Y DEL LAGO DE AMATITLÁN NÓMINA DE SUELDOS CORRESPONDIENTES AL MES DE ENERO 2021
A4: RENGLÓN 011 PERSONAL PERMANENTE
A5: No. | B5: Renglón | C5: ÁREA | D5: Puesto Nominal | E5: Puesto Funcional | F5: Código Puesto | G5: CÓDIGO DE EMPLEADO | H5: PARTIDA INDIVIDUAL | I5: UBICACIÓN | J5: NOMBRE | L5: Acuerdo | M5: Fecha de Ingreso | N5: NIT | O5: IGSS | Q5: CÉDULA | R5: EXTENDIDA EN | S5: FECHA DE NACIMIENTO | T5: DIRECCIÓN | U5: TELÉFONO | V5: CORREO ELECTRÓNICO | W5: ESTADO CIVIL | X5: PROFESIÓN | Y5: OTROS ESTUDIOS | Z5: COLEGIADO ACTIVO | AA5: CUENTA BANCARIA | AB5: Devengado Mensual | AF5: Total Devengado Mensual | AG5: Deducciones | AN5: Total Deducciones | AO5: Líquido
AB6: Renglón 011 | AC6: Renglón 014 | AD6: Renglón 015 | AE6: Renglón 063 | AG6: 118 | AH6: 202 | AI6: 201 | AJ6: 203 | AK6: 211 | AL6: 102 | AM6: 120
AB7: Sueldo Mensual | AC7: Bono Profesional | AD7: Bono 66-2000 | AE7: Gastos de Represent. | AG7: Montepío | AH7: Fianza | AI7: IGSS | AJ7: ISR | AK7: DESC. | AL7: Amort BANTRAB | AM7: Decreto 81-70
AD8: 27 | AG8: PROMEDIO POR 12 MESES | AH8: 26 | AI8: 27 | AK8: JUDICIAL
A9: 1 | B9: 011 | C9: 990074989 | D9: Director Ejecutivo | E9: Director Ejecutivo | F9: 55272 | G9: 990074989 | H9: 00001 | I9: Dirección y Coordinación | J9: Omar José Orellana Cámbara | L9: 28 | M9: 2019-04-04 | N9: 444872-3 | O9: 160312179 | Q9: N-14 23657 | R9: Joyabaj, Quiche | S9: 1960-12-22 | T9: Lote 23 manzana D sector 3 Prados de Villa Hermosa, zona 7 san miguel Petapa | V9: edvinramos2000@yahoo.es | W9: casado | X9: Ingeniero Agrónomo | Z9: 2258 | AA9: 3031032222 | AB9: 17500 | AC9: 0 | AD9: 250 | AE9: 12000 | AF9: =SUM(AB9:AE9) -> 29750 | AG9: =ROUND(SUM(AB9:AC9)*15%,2) -> 2625 | AH9: =ROUND(SUM(AB9+AC9)*1.344%,2) -> 235.2 | AI9: =ROUND(SUM(AB9+AC9)*3%,2) -> 525 | AJ9: 545.38 | AK9: 0 | AN9: =SUM(AG9:AM9) -> 3930.58 | AO9: =+AF9-AN9 -> 25819.42
L10: Total 011 | AB10: =SUM(AB9) -> 17500 | AC10: 0 | AD10: 250 | AE10: 12000 | AF10: 29750 | AG10: 2625 | AH10: 235.2 | AI10: 525 | AJ10: 545.38 | AK10: 0 | AL10: 0 | AM10: 0 | AN10: 3930.58 | AO10: 25819.42
A12: RENGLÓN 022 PERSONAL POR CONTRATO
A13: No. | B13: Renglón | C13: ÁREA | D13: Puesto Nominal | E13: Puesto Funcional | F13: Código Puesto | G13: CÓDIGO DE EMPLEADO | H13: PARTIDA INDIVIDUAL | I13: UBICACIÓN | J13: NOMBRE | L13: Contrato | M13: Fecha de Ingreso | N13: NIT | O13: IGSS | Q13: CÉDULA | R13: EXTENDIDA EN | S13: FECHA DE NACIMIENTO | T13: DIRECCIÓN | U13: TELÉFONO | V13: CORREO ELECTRÓNICO | W13: ESTADO CIVIL | X13: PROFESIÓN | Y13: OTROS ESTUDIOS | Z13: COLEGIADO ACTIVO | AA13: CUENTA BANCARIA | AB13: Devengado Mensual | AF13: TOTAL DEVENGADO MENSUAL | AG13: Deducciones | AN13: Total Deducciones | AO13: Líquido
AB14: Renglón 022 | AC14: Renglón 026 | AD14: Renglón 027 | AE14: Renglón 063 | AG14: 118 | AH14: 202 | AI14: 201 | AJ14: 203 | AK14: 211 | AL14: 102 | AM14: 120
P15: DPI | AB15: Sueldo Mensual | AC15: Bono Profesional | AD15: Bono 66-2000 | AE15: Gastos de Represent. | AG15: Montepío | AH15: Fianza | AI15: IGSS | AJ15: ISR | AK15: DESC. | AL15: Amort BANTRAB | AM15: Decreto 81-70
AD16: 27 | AG16: PROMEDIO POR 12 MESES | AH16: 26 | AK16: JUDICIAL
A17: 2 | B17: 022 | C17: A | D17: Director Ejecutivo II | E17: Jefe Administrativo Financiero | F17: 351675 | G17: 990097519 | H17: 00011 | I17: División Financiera | J17: Víctor Aníbal López Aquino | L17: 01-2016-022-AMSA | M17: 2016-02-19 | N17: 2017446-2 | O17: 272086356 | Q17: A-1 849029 | R17: Guatemala, Guatemala | S17: 1972-05-25 | T17: 12 calle 9-97 zona 7 de Mixco | U17: 5405-4377 | W17: casada | X17: ='[1]021'!$S$21 -> Licenciatura en Administracion de Empresas | AB17: 12000 | AC17: 0 | AD17: 250 | AE17: 0 | AF17: =ROUND(SUM(AB17:AE17),2) -> 12250 | AG17: =ROUND(SUM(AB17:AC17)*15%,2) -> 1800 | AH17: =ROUND(SUM(AB17+AC17)*1.344%,2) -> 161.28 | AI17: =ROUND(SUM(AB17+AC17)*3%,2) -> 360 | AJ17: 304.5 | AL17: 3107.34 | AN17: =SUM(AG17:AM17) -> 5733.12 | AO17: =AF17-AN17 -> 6516.88
A18: 3 | B18: 022 | D18: Director Ejecutivo II | E18: Jefa Asesoría Jurídica | F18: 401225 | J18: Elizabeth Lemus Orellana | L18: 04-2019-022-AMSA | M18: 2019-05-15 | AB18: 12000 | AC18: 375 | AD18: 250 | AE18: 0 | AF18: =ROUND(SUM(AB18:AE18),2) -> 12625 | AG18: 1856.25 | AH18: 166.32 | AI18: 371.25 | AJ18: 319.88 | AN18: 2713.7 | AO18: 9911.3
A19: 4 | B19: 022 | D19: Subdirector Ejecutivo III | E19: Jefa de Educación Ambiental | F19: 351674 | J19: Maria Alejandra Punti Martínez | L19: 08-2016-022-AMSA | M19: 2016-04-04 | AB19: 11300 | AC19: 0 | AD19: 250 | AE19: 0 | AF19: 11550 | AG19: 1695 | AH19: 151.87 | AI19: 339 | AJ19: 275.8 | AN19: 2461.67 | AO19: 9088.33
A20: 5 | B20: 022 | D20: Director Ejecutivo II | E20: Jefe Desechos Sólidos y Liquidos | F20: 352693 | J20: Mynor Gustavo Tzicap Tzunún | L20: 03-2019-022-AMSA | M20: 2019-05-15 | AB20: 12000 | AC20: 375 | AD20: 250 | AE20: 0 | AF20: =ROUND(SUM(AB20:AE20),2) -> 12625 | AG20: 1856.25 | AH20: 166.32 | AI20: 371.25 | AJ20: 365.95 | AN20: 2759.77 | AO20: 9865.23
A21: 5 | B21: 22 | D21: Director Ejecutivo ll | E21: Jefe de Ejecucion de Proyectos | F21: 351677 | J21: Luis Enrique Acevedo Castañeda | L21: 05-2019-022-AMSA | M21: 2019-05-28 | AB21: 12000 | AC21: 375 | AD21: 250 | AE21: 0 | AF21: 12625 | AG21: 1856.25 | AH21: 166.32 | AI21: 371.25 | AJ21: 365.95 | AN21: 2759.77 | AO21: 9865.23
A22: 5 | B22: 22 | D22: subdirector Ejecutivo II | E22: Jede de Control de Calidad | F22: 351673 | J22: Sharon Vanadis Tuylen Domínguez | L22: 07-2019-022-AMSA | M22: 2019-06-06 | AB22: 12000 | AC22: 375 | AD22: 250 | AE22: 0 | AF22: 12625 | AG22: 1856.25 | AH22: 166.32 | AI22: 371.25 | AJ22: 319.88 | AN22: 2713.7 | AO22: 9911.3
A23: 8 | B23: 22 | D23: Subdirector Ejecutivo II | E23: Jefe de Forestal | F23: 352692 | J23: Rosa Maria López Vides | L23: 10-2019-022-AMSA | M23: 2019-11-18 | AB23: 12000 | AC23: 375 | AD23: 250 | AE23: 0 | AF23: =AB23+AC23+AD23 -> 12625 | AG23: 1856.25 | AH23: 166.32 | AI23: 371.25 | AJ23: 319.88 | AN23: 2713.7 | AO23: 9911.3
L24: Total 022 | AB24: =SUM(AB17:AB23) -> 83300 | AC24: 1875 | AD24: 1750 | AE24: 0 | AF24: 86925 | AG24: 12776.25 | AH24: 1144.75 | AI24: 2555.25 | AJ24: 2271.84 | AK24: =SUM(AK17:AK21) -> 0 | AL24: =SUM(AL17:AL23) -> 3107.34 | AM24: =SUM(AM17:AM21) -> 0 | AN24: =SUM(AN17:AN23) -> 21855.43 | AO24: =SUM(AO17:AO23) -> 65069.57
L25: Total 011 y 022 | AB25: =+AB24+AB10 -> 100800 | AC25: =+AC24+AC10 -> 1875 | AD25: =+AD24+AD10 -> 2000 | AE25: =+AE24+AE10 -> 12000 | AF25: =SUM(AF24+AF10) -> 116675 | AG25: 15401.25 | AH25: 1379.95 | AI25: 3080.25 | AJ25: 2817.22 | AK25: 0 | AL25: 3107.34 | AM25: 0 | AN25: =AG25+AH25+AI25+AJ25+AL25 -> 25786.01 | AO25: =AF25-AN25 -> 90888.99
B34: Elaboró: | AF34: Vo.Bo.
D35: Loida Rebeca Vásquez Zuleta | AG35: Ing. Omar José Orellana Cámbara
D36: Encargada de Nómina | AG36: Director Ejecutivo
D37: AMSA | G37: AMSA | AG37: AMSA | AO37: 1/1

Sheet Hoja1
A6: 3 | B6: 022 | D6: Director Ejecutivo III | E6: Jefe Ordenamiento Territorial | F6: 351670 | J6: Julio Christian Montenegro Guzman | L6: 11-2019-022-AMSA | M6: 2019-11-18 | AB6: =13500/31*17 -> 7403.225806 | AC6: =375/31*17 -> 205.6451613 | AD6: =250/31*17 -> 137.0967742 | AE6: 0 | AF6: =ROUND(SUM(AB6:AE6),2) -> 7745.97 | AG6: =ROUND(SUM(AB6:AC6)*15%,2) -> 1141.33 | AH6: =ROUND(SUM(AB6+AC6)*1.344%,2) -> 102.26 | AI6: =ROUND(SUM(AB6+AC6)*3%,2) -> 228.27 | AJ6: 381.38 | AN6: =SUM(AG6:AM6) -> 1853.24 | AO6: =AF6-AN6 -> 5892.73 | AP6: 9901370183
F15: 12000 | G15: =F15/2 -> 6000

Sheet SP 031A (hidden)
A2: AUTORIDAD PARA EL MANEJO SUSTENTABLE DE LA CUENCA Y DEL LAGO DE AMATITLÁN.
B3: PRESIDENCIA DE LA REPÚBLICA.
A5: =#REF! -> 
A6: =#REF! -> 
B8: GUATEMALA, | F8: =TODAY() -> 2021-06-21 | O8: CANTIDAD: | S8: =+#REF! -> 
B10: UNIDAD SOLICITANTE: | H10: RECURSOS HUMANOS
B12: CANTIDAD: | E12: =PesosMN(S8) -> 
B13: NOMINA: | H13: =+A6 ->  | Q13: VENCE:
B15: CUR | D15: x | F15: CHEQUE AMSA | L15: CAJA CHICA
B17: A NOMBRE DE: | F17: AMSA
B19: OBSERVACIONES: | G19: =#REF! -> 
G20: 031 "JORNALES"
A29: AUTORIDAD PARA EL MANEJO SUSTENTABLE DE LA CUENCA Y DEL LAGO DE AMATITLÁN.
B30: PRESIDENCIA DE LA REPÚBLICA.
A32: ='[2]031'!E42 -> SOLICITUD DE PAGO
A33: =+#REF! -> 
B35: GUATEMALA, | F35: =F8 -> 2021-06-21 | O35: CANTIDAD: | S35: =+#REF! -> 
B37: UNIDAD SOLICITANTE: | H37: RECURSOS HUMANOS
B39: CANTIDAD: | E39: =PesosMN(S35) -> 
B40: NOMINA: | H40: =+A33 ->  | Q40: VENCE:
B42: CUR | D42: x | F42: CHEQUE AMSA | L42: CAJA CHICA
B44: A NOMBRE DE: | F44: AMSA
B46: OBSERVACIONES: | G46: =G19 -> 
G47: 031 "JORNALES" DE LA DIVISIÓN DE DESECHOS SÓLIDOS.
A54: AUTORIDAD PARA EL MANEJO SUSTENTABLE DE LA CUENCA Y DEL LAGO DE AMATITLÁN.
B55: PRESIDENCIA DE LA REPÚBLICA.
A57: ='[2]031'!E78 -> SOLICITUD DE PAGO
A58: =+#REF! -> 
B60: GUATEMALA, | F60: =F8 -> 2021-06-21 | O60: CANTIDAD: | S60: =+#REF! -> 
B62: UNIDAD SOLICITANTE: | H62: RECURSOS HUMANOS
B64: CANTIDAD: | E64: =PesosMN(S60) -> 
B65: NOMINA: | H65: =A58 ->  | Q65: VENCE:
B67: CUR | D67: x | F67: CHEQUE AMSA | L67: CAJA CHICA
B69: A NOMBRE DE: | F69: AMSA
B71: OBSERVACIONES: | G71: =G19 -> 
G72: 031 "JORNALES" DE LA DIVISIÓN DE DESECHOS LÍQUIDOS.
A81: AUTORIDAD PARA EL MANEJO SUSTENTABLE DE LA CUENCA Y DEL LAGO DE AMATITLÁN.
B82: PRESIDENCIA DE LA REPÚBLICA.
A84: ='[2]031'!E116 -> SOLICITUD DE PAGO
A85: =+#REF! -> 
B87: GUATEMALA, | F87: =F8 -> 2021-06-21 | O87: CANTIDAD: | S87: =+#REF! -> 
B89: UNIDAD SOLICITANTE: | H89: RECURSOS HUMANOS
B91: CANTIDAD: | E91: =PesosMN(S87) -> 
B92: NOMINA: | H92: =A85 ->  | Q92: VENCE:
B94: CUR | D94: x | F94: CHEQUE AMSA | L94: CAJA CHICA
B96: A NOMBRE DE: | F96: AMSA
B98: OBSERVACIONES: | G98: =G19 -> 
G99: 031 "JORNALES" DE LA DIVISIÓN DE MANTENIMIENTO Y LIMPIEZA DEL LAGO.
A109: AUTORIDAD PARA EL MANEJO SUSTENTABLE DE LA CUENCA Y DEL LAGO DE AMATITLÁN.
B110: PRESIDENCIA DE LA REPÚBLICA.
A112: ='[2]031'!E161 -> SOLICITUD DE PAGO
A113: =+#REF! -> 
B115: GUATEMALA, | F115: =F8 -> 2021-06-21 | O115: CANTIDAD: | S115: =+#REF! -> 
B117: UNIDAD SOLICITANTE: | H117: RECURSOS HUMANOS
B119: CANTIDAD: | E119: =PesosMN(S115) -> 
B120: NOMINA No. | I120: =A113 ->  | Q120: VENCE:
B122: CUR | D122: x | F122: CHEQUE AMSA | L122: CAJA CHICA
B124: A NOMBRE DE: | F124: AMSA
B126: OBSERVACIONES: | G126: =G19 -> 
G127: 031 "JORNALES" DE LA DIVISIÓN FORESTAL.

Sheet B 031 (hidden)
A1: GOBIERNO DE LA REPÚBLICA DE GUATEMALA
A2: AUTORIDAD PARA EL MANEJO SUSTENTABLE DE LA CUENCA Y DEL LAGO DE AMATITLÁN
A5: Boleta de Liquidación Mensual Renglón 031 "Jornales" Correspondiente al mes de septiembre 2014
A6: =#REF! -> 
A8: Empleado: | C8: =#REF! ->  | K8: Certificación No. | N8: =#REF! ->  | P8: Fecha: | R8: 2014-08-31
A9: Contrato: | C9: =#REF! ->  | F9: Puesto Funcional: | I9: =#REF! ->  | M9: Titulo Jornal: | P9: =#REF! -> 
A10: Cuenta / Banco: | D10: =#REF! ->  | F10: Banco de Desarrollo Rural, S.A. | K10: Jornal Diario: | N10: =#REF! ->  | P10: Días Trabajados: | S10: =#REF! -> 
M12: Ingresos | Q12: Deducciones
B14: 031 | C14: DEVENGADO | M14: =#REF! -> 
B15: 033 | C15: BONO ACUERDO GUBERNATIVO 66-2000 | M15: =#REF! -> 
B16: 201 | C16: I.G.S.S | Q16: =#REF! -> 
B17: 118 | C17: MONTEPÍO | Q17: 0
B18: 211 | C18: RETENCIONES JUDICIALES | Q18: =#REF! -> 
K19: Total : | M19: =SUM(M14:O18) ->  | Q19: =SUM(Q16:S18) -> 
K20: Liquido : | M20: =M19-Q19 -> 
A29: María José Ceballos López | M29: =C8 -> 
A30: Encargada de Nómina | M30: =P9 -> 
A31: AMSA | M31: AMSA
A40: GOBIERNO DE LA REPÚBLICA DE GUATEMALA
A41: AUTORIDAD PARA EL MANEJO SUSTENTABLE DE LA CUENCA Y DEL LAGO DE AMATITLÁN
A44: =A5 -> Boleta de Liquidación Mensual Renglón 031 "Jornales" Correspondiente al mes de septiembre 2014
A45: =A6 -> 
A47: Empleado: | C47: =C8 ->  | K47: Certificación No. | N47: =N8 ->  | P47: Fecha: | R47: =R8 -> 2014-08-31
A48: Contrato: | C48: =C9 ->  | F48: Puesto Funcional: | I48: =I9 ->  | M48: Titulo Jornal: | P48: =P9 -> 
A49: Cuenta / Banco: | D49: =D10 ->  | F49: Banco de Desarrollo Rural, S.A. | K49: Jornal Diario: | N49: =N10 ->  | P49: Días Trabajados: | S49: =S10 -> 
M51: Ingresos | Q51: Deducciones
B53: 031 | C53: DEVENGADO | M53: =M14 -> 
B54: 033 | C54: BONO ACUERDO GUBERNATIVO 66-2000 | M54: =M15 -> 
B55: 201 | C55: I.G.S.S | Q55: =Q16 -> 
B56: 118 | C56: MONTEPÍO | Q56: =Q17 -> 0
B57: 211 | C57: RETENCIONES JUDICIALES | Q57: =Q18 -> 
K58: Total : | M58: =SUM(M53:O57) ->  | Q58: =SUM(Q55:S57) -> 
K59: Liquido : | M59: =M58-Q58 -> 
A68: =A29 -> María José Ceballos López | M68: =C47 -> 
A69: =A30 -> Encargada de Nómina | M69: =P48 -> 
A70: =A31 -> AMSA | M70: AMSA
A72: GOBIERNO DE LA REPÚBLICA DE GUATEMALA
A73: AUTORIDAD PARA EL MANEJO SUSTENTABLE DE LA CUENCA Y DEL LAGO DE AMATITLÁN
A76: =A5 -> Boleta de Liquidación Mensual Renglón 031 "Jornales" Correspondiente al mes de septiembre 2014
A77: =A6 -> 
A79: Empleado: | C79: =#REF! ->  | K79: Certificación No. | N79: =N8+1 ->  | P79: Fecha: | R79: =R8 -> 2014-08-31
A80: Contrato: | C80: =#REF! ->  | F80: Puesto Funcional: | I80: =#REF! ->  | M80: Titulo Jornal: | P80: =#REF! -> 
A81: Cuenta / Banco: | D81: =#REF! ->  | F81: Banco de Desarrollo Rural, S.A. | K81: Jornal Diario: | N81: =#REF! ->  | P81: Días Trabajados: | S81: =#REF! -> 
M83: Ingresos | Q83: Deducciones
B85: 031 | C85: DEVENGADO | M85: =#REF! -> 
B86: 033 | C86: BONO ACUERDO GUBERNATIVO 66-2000 | M86: =#REF! -> 
B87: 201 | C87: I.G.S.S | Q87: =#REF! -> 
B88: 118 | C88: MONTEPÍO | Q88: 0
B89: 211 | C89: RETENCIONES JUDICIALES | Q89: =#REF! -> 
K90: Total : | M90: =SUM(M85:O89) ->  | Q90: =SUM(Q87:S89) -> 
K91: Liquido : | M91: =M90-Q90 -> 
A100: María José Ceballos López | M100: =C79 -> 
A101: Encargada de Nómina | M101: =P80 -> 
A102: AMSA | M102: AMSA
A111: GOBIERNO DE LA REPÚBLICA DE GUATEMALA
A112: AUTORIDAD PARA EL MANEJO SUSTENTABLE DE LA CUENCA Y DEL LAGO DE AMATITLÁN
A115: =A76 -> Boleta de Liquidación Mensual Renglón 031 "Jornales" Correspondiente al mes de septiembre 2014
A116: =A77 -> 
A118: Empleado: | C118: =C79 ->  | K118: Certificación No. | N118: =N79 ->  | P118: Fecha: | R118: =R79 -> 2014-08-31
A119: Contrato: | C119: =C80 ->  | F119: Puesto Funcional: | I119: =I80 ->  | M119: Titulo Jornal: | P119: =P80 -> 
A120: Cuenta / Banco: | D120: =D81 ->  | F120: Banco de Desarrollo Rural, S.A. | K120: Jornal Diario: | N120: =N81 ->  | P120: Días Trabajados: | S120: =S81 -> 
M122: Ingresos | Q122: Deducciones
B124: 031 | C124: DEVENGADO | M124: =M85 -> 
B125: 033 | C125: BONO ACUERDO GUBERNATIVO 66-2000 | M125: =M86 -> 
B126: 201 | C126: I.G.S.S | Q126: =Q87 -> 
B127: 118 | C127: MONTEPÍO | Q127: =Q88 -> 0
B128: 211 | C128: RETENCIONES JUDICIALES | Q128: =Q89 -> 
K129: Total : | M129: =SUM(M124:O128) ->  | Q129: =SUM(Q126:S128) -> 
K130: Liquido : | M130: =M129-Q129 -> 
A139: =A100 -> María José Ceballos López | M139: =C118 -> 
A140: =A101 -> Encargada de Nómina | M140: =P119 -> 
A141: =A102 -> AMSA | M141: AMSA
A143: GOBIERNO DE LA REPÚBLICA DE GUATEMALA
A144: AUTORIDAD PARA EL MANEJO SUSTENTABLE DE LA CUENCA Y DEL LAGO DE AMATITLÁN
A147: =A76 -> Boleta de Liquidación Mensual Renglón 031 "Jornales" Correspondiente al mes de septiembre 2014
A148: =A77 -> 
A150: Empleado: | C150: =#REF! ->  | K150: Certificación No. | N150: =N79+1 ->  | P150: Fecha: | R150: =R8 -> 2014-08-31
A151: Contrato: | C151: =#REF! ->  | F151: Puesto Funcional: | I151: =#REF! ->  | M151: Titulo Jornal: | P151: =#REF! -> 
A152: Cuenta / Banco: | D152: =#REF! ->  | F152: Banco de Desarrollo Rural, S.A. | K152: Jornal Diario: | N152: =#REF! ->  | P152: Días Trabajados: | S152: =#REF! -> 
M154: Ingresos | Q154: Deducciones
B156: 031 | C156: DEVENGADO | M156: =#REF! -> 
B157: 033 | C157: BONO ACUERDO GUBERNATIVO 66-2000 | M157: =#REF! -> 
B158: 201 | C158: I.G.S.S | Q158: =#REF! -> 
B159: 118 | C159: MONTEPÍO | Q159: 0
B160: 211 | C160: RETENCIONES JUDICIALES | Q160: =#REF! -> 
K161: Total : | M161: =SUM(M156:O160) ->  | Q161: =SUM(Q158:S160) -> 
K162: Liquido : | M162: =M161-Q161 -> 
A171: María José Ceballos López | M171: =C150 -> 
A172: Encargada de Nómina | M172: =P151 -> 
A173: AMSA | M173: AMSA
A182: GOBIERNO DE LA REPÚBLICA DE GUATEMALA
A183: AUTORIDAD PARA EL MANEJO SUSTENTABLE DE LA CUENCA Y DEL LAGO DE AMATITLÁN
A186: =A147 -> Boleta de Liquidación Mensual Renglón 031 "Jornales" Correspondiente al mes de septiembre 2014
A187: =A148 -> 
A189: Empleado: | C189: =C150 ->  | K189: Certificación No. | N189: =N150 ->  | P189: Fecha: | R189: =R150 -> 2014-08-31
A190: Contrato: | C190: =C151 ->  | F190: Puesto Funcional: | I190: =I151 ->  | M190: Titulo Jornal: | P190: =P151 -> 
A191: Cuenta / Banco: | D191: =D152 ->  | F191: Banco de Desarrollo Rural, S.A. | K191: Jornal Diario: | N191: =N152 ->  | P191: Días Trabajados: | S191: =S152 -> 
M193: Ingresos | Q193: Deducciones
B195: 031 | C195: DEVENGADO | M195: =M156 -> 
B196: 033 | C196: BONO ACUERDO GUBERNATIVO 66-2000 | M196: =M157 -> 
B197: 201 | C197: I.G.S.S | Q197: =Q158 -> 
B198: 118 | C198: MONTEPÍO | Q198: =Q159 -> 0
B199: 211 | C199: RETENCIONES JUDICIALES | Q199: =Q160 -> 
K200: Total : | M200: =SUM(M195:O199) ->  | Q200: =SUM(Q197:S199) -> 
K201: Liquido : | M201: =M200-Q200 -> 
A210: =A171 -> María José Ceballos López | M210: =C189 -> 
A211: =A172 -> Encargada de Nómina | M211: =P190 -> 
A212: =A173 -> AMSA | M212: AMSA
A214: GOBIERNO DE LA REPÚBLICA DE GUATEMALA
A215: AUTORIDAD PARA EL MANEJO SUSTENTABLE DE LA CUENCA Y DEL LAGO DE AMATITLÁN
A218: =A147 -> Boleta de Liquidación Mensual Renglón 031 "Jornales" Correspondiente al mes de septiembre 2014
A219: =A148 -> 
A221: Empleado: | C221: =#REF! ->  | K221: Certificación No. | N221: =N150+1 ->  | P221: Fecha: | R221: 2014-09-30
A222: Contrato: | C222: =#REF! ->  | F222: Puesto Funcional: | I222: =#REF! ->  | M222: Titulo Jornal: | P222: =#REF! -> 
A223: Cuenta / Banco: | D223: =#REF! ->  | F223: Banco de Desarrollo Rural, S.A. | K223: Jornal Diario: | N223: =#REF! ->  | P223: Días Trabajados: | S223: =#REF! -> 
M225: Ingresos | Q225: Deducciones
B227: 031 | C227: DEVENGADO | M227: =#REF! -> 
B228: 033 | C228: BONO ACUERDO GUBERNATIVO 66-2000 | M228: =#REF! -> 
B229: 201 | C229: I.G.S.S | Q229: =#REF! -> 
B230: 118 | C230: MONTEPÍO | Q230: 0
B231: 211 | C231: RETENCIONES JUDICIALES | Q231: =#REF! -> 
K232: Total : | M232: =SUM(M227:O231) ->  | Q232: =SUM(Q229:S231) -> 
K233: Liquido : | M233: =M232-Q232 -> 
A242: María José Ceballos López | M242: =C221 -> 
A243: Encargada de Nómina | M243: =P222 -> 
A244: AMSA | M244: AMSA
A253: GOBIERNO DE LA REPÚBLICA DE GUATEMALA
A254: AUTORIDAD PARA EL MANEJO SUSTENTABLE DE LA CUENCA Y DEL LAGO DE AMATITLÁN
A257: =A218 -> Boleta de Liquidación Mensual Renglón 031 "Jornales" Correspondiente al mes de septiembre 2014
A258: =A219 -> 
A260: Empleado: | C260: =C221 ->  | K260: Certificación No. | N260: =N221 ->  | P260: Fecha: | R260: =R221 -> 2014-09-30
A261: Contrato: | C261: =C222 ->  | F261: Puesto Funcional: | I261: =I222 ->  | M261: Titulo Jornal: | P261: =P222 -> 
A262: Cuenta / Banco: | D262: =D223 ->  | F262: Banco de Desarrollo Rural, S.A. | K262: Jornal Diario: | N262: =N223 ->  | P262: Días Trabajados: | S262: =S223 -> 
M264: Ingresos | Q264: Deducciones
B266: 031 | C266: DEVENGADO | M266: =M227 -> 
B267: 033 | C267: BONO ACUERDO GUBERNATIVO 66-2000 | M267: =M228 -> 
B268: 201 | C268: I.G.S.S | Q268: =Q229 -> 
B269: 118 | C269: MONTEPÍO | Q269: =Q230 -> 0
B270: 211 | C270: RETENCIONES JUDICIALES | Q270: =Q231 -> 
K271: Total : | M271: =SUM(M266:O270) ->  | Q271: =SUM(Q268:S270) -> 
K272: Liquido : | M272: =M271-Q271 -> 
A281: =A242 -> María José Ceballos López | M281: =C260 -> 
A282: =A243 -> Encargada de Nómina | M282: =P261 -> 
A283: =A244 -> AMSA | M283: AMSA
A285: GOBIERNO DE LA REPÚBLICA DE GUATEMALA
A286: AUTORIDAD PARA EL MANEJO SUSTENTABLE DE LA CUENCA Y DEL LAGO DE AMATITLÁN
A289: =A218 -> Boleta de Liquidación Mensual Renglón 031 "Jornales" Correspondiente al mes de septiembre 2014
A290: =A219 -> 
A292: Empleado: | C292: =#REF! ->  | K292: Certificación No. | N292: =N221+1 ->  | P292: Fecha: | R292: =R8 -> 2014-08-31
A293: Contrato: | C293: =#REF! ->  | F293: Puesto Funcional: | I293: =#REF! ->  | M293: Titulo Jornal: | P293: =#REF! -> 
A294: Cuenta / Banco: | D294: =#REF! ->  | F294: Banco de Desarrollo Rural, S.A. | K294: Jornal Diario: | N294: =#REF! ->  | P294: Días Trabajados: | S294: =#REF! -> 
M296: Ingresos | Q296: Deducciones
B298: 031 | C298: DEVENGADO | M298: =#REF! -> 
B299: 033 | C299: BONO ACUERDO GUBERNATIVO 66-2000 | M299: =#REF! -> 
B300: 201 | C300: I.G.S.S | Q300: =#REF! -> 
B301: 118 | C301: MONTEPÍO | Q301: 0
B302: 211 | C302: RETENCIONES JUDICIALES | Q302: =#REF! -> 
K303: Total : | M303: =SUM(M298:O302) ->  | Q303: =SUM(Q300:S302) -> 
K304: Liquido : | M304: =M303-Q303 -> 
A313: María José Ceballos López | M313: =C292 -> 
A314: Encargada de Nómina | M314: =P293 -> 
A315: AMSA | M315: AMSA
A324: GOBIERNO DE LA REPÚBLICA DE GUATEMALA
A325: AUTORIDAD PARA EL MANEJO SUSTENTABLE DE LA CUENCA Y DEL LAGO DE AMATITLÁN
A328: =A289 -> Boleta de Liquidación Mensual Renglón 031 "Jornales" Correspondiente al mes de septiembre 2014
A329: =A290 -> 
A331: Empleado: | C331: =C292 ->  | K331: Certificación No. | N331: =N292 ->  | P331: Fecha: | R331: =R292 -> 2014-08-31
A332: Contrato: | C332: =C293 ->  | F332: Puesto Funcional: | I332: =I293 ->  | M332: Titulo Jornal: | P332: =P293 -> 
A333: Cuenta / Banco: | D333: =D294 ->  | F333: Banco de Desarrollo Rural, S.A. | K333: Jornal Diario: | N333: =N294 ->  | P333: Días Trabajados: | S333: =S294 -> 
M335: Ingresos | Q335: Deducciones
B337: 031 | C337: DEVENGADO | M337: =M298 -> 
B338: 033 | C338: BONO ACUERDO GUBERNATIVO 66-2000 | M338: =M299 -> 
B339: 201 | C339: I.G.S.S | Q339: =Q300 -> 
B340: 118 | C340: MONTEPÍO | Q340: =Q301 -> 0
B341: 211 | C341: RETENCIONES JUDICIALES | Q341: =Q302 -> 
K342: Total : | M342: =SUM(M337:O341) ->  | Q342: =SUM(Q339:S341) -> 
K343: Liquido : | M343: =M342-Q342 -> 
A352: =A313 -> María José Ceballos López | M352: =C331 -> 
A353: =A314 -> Encargada de Nómina | M353: =P332 -> 
A354: =A315 -> AMSA | M354: AMSA
A356: GOBIERNO DE LA REPÚBLICA DE GUATEMALA
A357: AUTORIDAD PARA EL MANEJO SUSTENTABLE DE LA CUENCA Y DEL LAGO DE AMATITLÁN
A360: Boleta de Liquidación Mensual Renglón 031 "Jornales" Correspondiente al mes de Agosto 2015
A361: NÚMERO 45-2015
A363: Empleado: | C363: Yomara Ninett Escobar Calderón | K363: Certificación No. | N363: 7 | P363: Fecha: | R363: 2015-08-31
A364: Contrato: | C364: 11-2014-031-AMSA | F364: Puesto Funcional: | I364: =#REF! ->  | M364: Titulo Jornal: | P364: Peón
A365: Cuenta / Banco: | D365: 3164072096 | F365: Banco de Desarrollo Rural, S.A. | K365: Jornal Diario: | N365: 74.97 | P365: Días Trabajados: | S365: =#REF! -> 
M367: Ingresos | Q367: Deducciones
B369: 031 | C369: DEVENGADO | M369: =+N365*S365 -> 
B370: 033 | C370: BONO ACUERDO GUBERNATIVO 66-2000 | M370: =#REF! -> 
B371: 201 | C371: I.G.S.S | Q371: =ROUND(M369*4.83%,2) -> 
B372: 118 | C372: MONTEPÍO | Q372: 0
B373: 211 | C373: RETENCIONES JUDICIALES | Q373: =#REF! -> 
K374: Total : | M374: =SUM(M369:O373) ->  | Q374: =SUM(Q371:S373) -> 
K375: Liquido : | M375: =M374-Q374 -> 
A384: Jonnathan René Pernillo Salazar | M384: =C363 -> Yomara Ninett Escobar Calderón
A385: Encargado de Nómina | M385: =P364 -> Peón
A386: AMSA | M386: AMSA
A395: GOBIERNO DE LA REPÚBLICA DE GUATEMALA
A396: AUTORIDAD PARA EL MANEJO SUSTENTABLE DE LA CUENCA Y DEL LAGO DE AMATITLÁN
... 1676 more rows
